bitfinex/quotes_SOLUSD_20240702
["timestamp","ask_amount","ask_price","bid_price","bid_amount"]
[1719944923030,0.024,153.17,153.13,22.8558]
[1719944923408,0.024,153.17,153.13,16.3257]
[1719944923612,6.5322,153.09,153.04,6.5339]
[1719944923831,6.5322,153.09,153.05,6.5336]
[1719944923832,6.5324,153.09,153.05,6.5336]
[1719944924038,6.5317,153.1,153.06,6.5332]
[1719944924233,6.5314,153.11,153.06,6.5332]
[1719944924437,6.5314,153.11,153.07,6.5329]
[1719944924636,6.5314,153.11,153.06,16.3332]
[1719944924637,35.9935,153.16,153.06,22.8665]
[1719944924818,27.198,153.12,153.03,16.3361]
[1719944925018,6.5313,153.11,153.06,6.5333]
[1719944925249,27.198,153.12,153.07,16.3317]
[1719944925611,27.198,153.12,153.09,6.532]
[1719944925814,27.198,153.12,153.07,16.3317]
[1719944926118,10.0652,153.1,153.04,22.8688]
[1719944926634,6.5322,153.09,153.04,22.8688]
[1719944927034,10.0652,153.1,153.05,6.5337]
[1719944927537,6.5321,153.09,153.04,22.8689]
[1719944928046,16.5969,153.1,153.05,6.5337]
[1719944928246,6.5322,153.09,153.04,16.3349]
[1719944928446,29.7352,153.1,153.03,6.5342]
[1719944928735,6.5326,153.08,153.04,6.5341]
[1719944930521,6.5326,153.08,153.03,22.8708]
[1719944932413,29.7352,153.1,153.0,16.3393]
[1719944932636,53.6052,153.1,153.0,16.3393]
[1719944933228,6.5331,153.07,153.02,6.5349]
[1719944933544,6.5326,153.08,153.02,16.3375]
[1719944933758,19.67,153.09,153.02,16.3375]
[1719944933929,19.67,153.09,153.02,22.8724]
[1719944934240,19.67,153.09,153.03,6.5345]
[1719944934447,6.5329,153.07,153.03,6.5345]
[1719944934824,6.5337,153.06,153.02,16.3375]
[1719944935045,6.5335,153.06,153.01,6.5354]
[1719944935226,6.5335,153.06,153.02,6.5349]
[1719944935423,16.87847983,153.1,153.02,6.5349]
[1719944935627,6.5332,153.07,153.02,6.5349]
[1719944935943,6.5339,153.05,153.01,16.3384]
[1719944936125,6.5335,153.06,153.01,16.3384]
[1719944936443,6.5335,153.06,153.01,22.8738]
[1719944937320,19.67,153.08,153.01,16.3384]
[1719944937529,19.67,153.08,152.97,32.6852]
[1719944937530,6.5342,153.04,152.99,6.5362]
[1719944938023,6.5342,153.04,153.0,6.5358]
[1719944938223,6.5339,153.05,153.0,6.5358]
[1719944938929,25.9652,153.03,152.98,16.3411]
[1719944939131,32.5002,153.03,152.98,22.8777]
[1719944939385,32.5002,153.03,152.99,6.5363]
[1719944939553,25.9652,153.03,152.99,6.5363]
[1719944939845,32.4998,153.03,152.99,6.5363]
[1719944940230,32.4998,153.03,152.98,16.3411]
[1719944940231,25.9652,153.03,153.0,6.5358]
[1719944943239,25.9652,153.03,152.99,6.5362]
[1719944943535,42.302,153.03,152.95,6.5378]
[1719944943726,6.5361,153.0,152.95,22.8827]
[1719944943921,6.5356,153.01,152.96,6.5375]
[1719944944253,6.5356,153.01,152.92,16.3475]
[1719944944254,10.6963,153.01,152.92,16.3475]
[1719944944431,10.6963,153.01,152.91,23.87]
[1719944944432,6.5372,152.97,152.91,23.87]
[1719944944751,6.5364,152.99,152.94,6.5381]
[1719944944952,10.6963,153.01,152.95,6.538]
[1719944945120,20.0,153.0,152.95,6.538]
[1719944945322,6.5365,152.99,152.95,6.538]
[1719944945559,6.537,152.98,152.93,16.3471]
[1719944945726,20.0,153.0,152.95,6.538]
[1719944945727,6.5364,152.99,152.95,6.538]
[1719944945927,20.0,153.0,152.96,6.5375]
[1719944946148,30.0,152.97,152.94,6.5384]
[1719944946450,30.0,152.97,152.89,27.3919]
[1719944946451,30.0,152.97,152.91,6.5396]
[1719944946649,30.0,152.97,152.89,27.3919]
[1719944946830,30.0,152.97,152.94,6.5383]
[1719944947027,30.0,152.97,152.96,6.5376]
[1719944947835,61.9621,153.03,152.92,16.3476]
[1719944948158,6.5361,153.0,152.95,6.5378]
[1719944948528,6.5365,152.99,152.95,6.5378]
[1719944948727,6.5375,152.97,152.91,16.3492]
[1719944948953,16.3396,153.01,152.9,23.87]
[1719944949858,6.5364,152.99,152.94,6.5384]
[1719944950147,52.43662736,153.03,152.95,16.3446]
[1719944950148,45.6252,153.03,152.95,16.3446]
[1719944950358,25.9652,153.03,152.97,16.3421]
[1719944950531,32.5002,153.03,152.98,6.5365]
[1719944950966,6.5352,153.02,152.98,6.5365]
[1719944951149,6.5352,153.02,152.97,22.8791]
[1719944952446,32.4999,153.03,152.98,6.5365]
[1719944952638,30.0,152.99,152.98,6.5365]
[1719944953037,30.0,152.99,152.97,22.8792]
[1719944953237,30.0,152.99,152.93,16.3469]
[1719944954401,30.0,152.99,152.9,23.87]
[1719944954402,6.5363,152.99,152.9,23.87]
[1719944954563,6.5363,152.99,152.95,22.8829]
[1719944954868,6.536,153.0,152.96,6.5375]
[1719944955763,6.536,153.0,152.95,22.883]
[1719944956147,6.5363,152.99,152.95,22.883]
[1719944956535,35.999,153.01,152.93,6.5387]
[1719944956753,35.999,153.01,152.9,6.5398]
[1719944956754,46.0567,152.99,152.9,6.5398]
[1719944956958,6.5384,152.95,152.9,6.5401]
[1719944957161,6.5376,152.96,152.91,6.5394]
[1719944957340,6.5382,152.95,152.89,16.3507]
[1719944957859,30.0,152.94,152.91,22.8887]
[1719944958650,30.0,152.94,152.92,6.5392]
[1719944959259,30.0,152.94,152.91,22.8887]
[1719944959758,30.0,152.94,152.91,22.8885]
[1719944960059,30.0,152.94,152.91,16.349]
[1719944960241,30.0,152.94,152.88,32.7047]
[1719944960242,16.5918,152.99,152.94,6.5381]
[1719944960441,6.5369,152.98,152.94,6.5384]
[1719944960638,6.5369,152.98,152.93,22.8852]
[1719944960846,6.5369,152.98,152.88,56.5747]
[1719944960847,10.0555,152.99,152.96,16.3437]
[1719944961146,30.0,152.97,152.96,6.5376]
[1719944961349,6.5358,153.01,152.96,6.5376]
[1719944963446,6.5344,153.04,152.98,16.3417]
[1719944963860,6.5346,153.03,152.99,6.5362]
[1719944964168,16.3352,153.05,152.94,16.3453]
[1719944964334,16.3352,153.05,152.96,6.5375]
[1719944964534,16.3352,153.05,152.97,6.5372]
[1719944964765,16.3352,153.05,152.98,6.5366]
[1719944964963,6.5349,153.03,152.98,6.5366]
[1719944965167,6.535,153.02,152.98,6.5366]
[1719944965552,6.5356,153.01,152.97,6.5371]
[1719944966450,35.9952,153.05,152.93,24.8621]
[1719944966656,6.5364,152.99,152.94,6.5382]
[1719944967254,35.997,153.03,152.93,16.3466]
[1719944967255,10.7973,153.0,152.93,16.3466]
[1719944967565,6.5369,152.98,152.93,22.8853]
[1719944968072,25.7907,152.99,152.91,6.5396]
[1719944968365,6.5381,152.95,152.9,22.8901]
[1719944968572,61.792,152.99,152.9,16.3501]
[1719944968775,6.5382,152.95,152.9,22.8902]
[1719944969071,6.5382,152.95,152.91,6.5397]
[1719944969244,6.5382,152.95,152.9,22.89]
[1719944969446,6.5382,152.95,152.91,6.5397]
[1719944969847,16.3435,152.97,152.89,6.5404]
[1719944970051,6.5388,152.94,152.9,6.5401]
[1719944970254,16.3435,152.97,152.9,6.5401]
[1719944970475,6.5382,152.95,152.91,6.5397]
[1719944970876,6.5377,152.96,152.92,6.5392]
[1719944971175,6.5377,152.96,152.91,22.8887]
[1719944972044,6.5386,152.94,152.9,6.54]
[1719944972248,6.5386,152.94,152.88,16.3519]
[1719944972249,6.5381,152.95,152.91,6.5397]
[1719944972449,45.4507,152.99,152.91,6.5397]
[1719944972450,6.5377,152.96,152.91,6.5397]
[1719944972658,25.7907,152.99,152.92,16.348]
[1719944972875,20.0,152.98,152.92,16.348]
[1719944973276,6.5381,152.95,152.91,6.5396]
[1719944973455,20.0,152.98,152.91,6.5396]
[1719944973775,6.5377,152.96,152.92,6.5393]
[1719944974161,6.5373,152.97,152.92,6.5393]
[1719944974370,6.5373,152.97,152.93,6.5389]
[1719944974679,26.5369,152.98,152.94,6.5384]
[1719944974870,26.5369,152.98,152.93,22.8859]
[1719944975371,26.5369,152.98,152.93,22.886]
[1719944976760,6.5372,152.97,152.93,22.886]
[1719944977064,6.5372,152.97,152.93,16.3471]
[1719944977858,6.5372,152.97,152.93,22.8859]
[1719944978159,6.5377,152.96,152.91,6.5394]
[1719944978460,36.3424,152.98,152.9,22.8902]
[1719944978782,6.5381,152.95,152.91,6.5397]
[1719944979778,6.5381,152.95,152.9,22.89]
[1719944980157,6.5381,152.95,152.91,6.5396]
[1719944981467,6.5397,152.91,152.87,6.5412]
[1719944981672,6.5389,152.93,152.89,6.5405]
[1719944982183,6.5389,152.93,152.84,93.506]
[1719944982184,36.0038,152.97,152.88,22.8932]
[1719944982380,20.0,152.98,152.87,6.5414]
[1719944982381,6.5402,152.91,152.87,6.5414]
[1719944982674,6.54,152.91,152.86,6.5418]
[1719944982860,6.54,152.91,152.79,32.7238]
[1719944982861,6.5415,152.87,152.83,6.5429]
[1719944983064,6.5411,152.88,152.82,16.359]
[1719944983267,6.5411,152.88,152.83,6.5429]
[1719944983469,6.5407,152.89,152.84,6.5427]
[1719944983859,16.352,152.89,152.79,85.9514]
[1719944984070,6.542,152.86,152.79,36.8661]
[1719944984282,93.3317,152.94,152.81,16.3597]
[1719944984283,6.541,152.88,152.81,16.3597]
[1719944984581,6.5407,152.89,152.84,6.5426]
[1719944984760,20.0,152.91,152.83,16.3574]
[1719944984971,6.541,152.88,152.83,22.9002]
[1719944985483,56.2728,152.87,152.8,16.361]
[1719944985858,42.8144,152.87,152.82,6.5432]
[1719944986081,42.8144,152.87,152.8,16.361]
[1719944986082,36.2728,152.87,152.8,16.361]
[1719944986384,36.2728,152.87,152.76,22.9108]
[1719944986385,6.5441,152.81,152.76,22.9108]
[1719944986580,6.5436,152.82,152.77,6.5456]
[1719944986755,6.5441,152.81,152.77,6.5456]
[1719944987283,6.5441,152.81,152.76,22.9107]
[1719944987780,36.0164,152.85,152.77,6.5457]
[1719944987781,6.5437,152.82,152.77,6.5457]
[1719944988076,6.5436,152.82,152.77,6.5457]
[1719944988284,6.5441,152.81,152.76,22.9108]
[1719944988478,16.3564,152.85,152.76,22.9108]
[1719944988479,36.0164,152.85,152.76,22.9108]
[1719944988658,16.3564,152.85,152.76,16.3648]
[1719944988860,6.5439,152.82,152.77,6.5456]
[1719944989264,6.5427,152.85,152.78,16.363]
[1719944989559,6.5425,152.85,152.8,6.5442]
[1719944989775,36.2728,152.87,152.75,16.3659]
[1719944989776,6.5441,152.81,152.75,16.3659]
[1719944989978,16.3552,152.86,152.77,6.5454]
[1719944990181,6.5441,152.81,152.76,6.5461]
[1719944990391,6.5445,152.8,152.76,6.5462]
[1719944990883,6.5445,152.8,152.75,22.9124]
[1719944991101,25.5395,152.79,152.72,49.1084]
[1719944991260,32.0845,152.79,152.74,6.547]
[1719944991462,25.5395,152.83,152.76,6.5461]
[1719944991661,6.5437,152.82,152.76,16.3651]
[1719944991970,6.5442,152.81,152.76,22.9112]
[1719944992169,6.5436,152.82,152.77,6.5456]
[1719944992486,16.3568,152.85,152.74,37.5435]
[1719944992668,6.5445,152.8,152.76,6.5462]
[1719944993383,6.5441,152.81,152.76,6.5462]
[1719944993577,36.0168,152.85,152.75,16.3662]
[1719944993763,20.0,152.84,152.75,16.3662]
[1719944993964,6.5442,152.81,152.76,6.5462]
[1719944994163,6.5445,152.8,152.76,6.5462]
[1719944994465,6.5441,152.81,152.76,6.5462]
[1719944994787,16.3585,152.83,152.75,16.3662]
[1719944994988,6.5446,152.8,152.75,22.9126]
[1719944995486,6.5451,152.79,152.75,16.3662]
[1719944995995,6.5451,152.79,152.75,22.9127]
[1719944996362,6.5446,152.8,152.75,22.9127]
[1719944996782,6.5446,152.8,152.76,6.546]
[1719944996987,6.5441,152.81,152.76,6.546]
[1719944997374,6.5449,152.8,152.75,22.9127]
[1719944999370,6.5451,152.79,152.75,22.9127]
[1719944999776,6.5446,152.8,152.75,22.9127]
[1719945000097,6.5446,152.8,152.76,6.5461]
[1719945000397,6.5446,152.8,152.75,16.3662]
[1719945000600,20.0,152.82,152.75,16.3662]
[1719945000801,6.542,152.86,152.81,6.5436]
[1719945000986,6.542,152.86,152.77,37.8546]
[1719945000987,16.352,152.89,152.8,6.5444]
[1719945001178,6.5425,152.85,152.8,6.5444]
[1719945001371,6.5428,152.84,152.8,6.5444]
[1719945001699,6.5424,152.85,152.81,6.5439]
[1719945001869,6.5424,152.85,152.79,16.3619]
[1719945001870,6.5424,152.85,152.8,6.5444]
[1719945002467,6.542,152.86,152.81,6.5438]
[1719945002870,6.5423,152.85,152.8,6.5444]
[1719945003172,16.352,152.89,152.76,22.9108]
[1719945003173,6.5442,152.81,152.76,22.9108]
[1719945003375,6.5429,152.84,152.79,6.5445]
[1719945003685,6.5429,152.84,152.8,6.5444]
[1719945003994,6.5424,152.85,152.8,6.5444]
[1719945004180,6.5434,152.83,152.73,61.7517]
[1719945004491,6.5433,152.83,152.79,6.5448]
[1719945004687,76.2313,152.9,152.78,22.9078]
[1719945004688,6.5437,152.82,152.78,22.9078]
[1719945004888,16.354,152.87,152.78,22.9078]
[1719945004889,6.5433,152.83,152.79,6.5447]
[1719945005186,16.354,152.87,152.79,6.5447]
[1719945005390,6.5427,152.84,152.79,6.5448]
[1719945005591,6.5432,152.83,152.79,6.5448]
[1719945005788,6.5428,152.84,152.79,6.5448]
[1719945006292,6.5433,152.83,152.78,6.5452]
[1719945006494,6.5433,152.83,152.73,61.7517]
[1719945006495,6.5424,152.85,152.79,16.3618]
[1719945006698,6.5424,152.85,152.81,6.5439]
[1719945007007,6.5424,152.85,152.79,16.3618]
[1719945007601,22.7959944,152.91,152.82,10.5627]
[1719945007792,16.3469,152.94,152.82,10.5627]
[1719945008198,16.3469,152.94,152.84,6.5424]
[1719945008199,6.5409,152.89,152.84,6.5424]
[1719945008506,16.349,152.92,152.85,6.5422]
[1719945009003,6.5403,152.9,152.85,6.5422]
[1719945009195,41.82699542,152.95,152.8,27.2014]
[1719945009400,41.82699542,152.95,152.82,22.9016]
[1719945009401,6.542,152.86,152.82,22.9016]
[1719945010385,6.5411,152.88,152.83,6.543]
[1719945010580,6.5416,152.87,152.82,22.9018]
[1719945010778,35.468,152.87,152.76,26.8957]
[1719945010985,20.0,152.86,152.76,43.2605]
[1719945011179,20.0,152.86,152.77,6.5453]
[1719945011401,6.5437,152.82,152.77,6.5453]
[1719945011590,6.5432,152.83,152.78,6.5453]
[1719945011783,20.0,152.86,152.76,43.2605]
[1719945011784,16.3562,152.85,152.76,43.2605]
[1719945012000,6.5433,152.83,152.78,6.5453]
[1719945012199,6.5433,152.83,152.76,43.2605]
[1719945012706,6.5442,152.81,152.76,16.3648]
[1719945012912,6.5442,152.81,152.76,22.9109]
[1719945013088,16.3551,152.86,152.77,6.5457]
[1719945013292,6.543,152.84,152.79,6.5447]
[1719945013700,6.543,152.84,152.78,16.363]
[1719945013701,6.5429,152.84,152.78,16.363]
[1719945013901,6.5429,152.84,152.79,6.5445]
[1719945014491,6.5433,152.83,152.78,22.9082]
[1719945015319,6.5436,152.82,152.78,22.9082]
[1719945016107,51.8222,152.87,152.78,16.363]
[1719945016405,16.3562,152.85,152.76,6.5459]
[1719945016588,16.3562,152.85,152.76,6.5458]
[1719945016790,6.5437,152.82,152.77,6.5457]
[1719945017015,6.5441,152.81,152.75,16.3664]
[1719945017184,6.5437,152.82,152.77,6.5456]
[1719945017807,6.5437,152.82,152.78,6.5453]
[1719945018387,6.5437,152.82,152.77,6.5456]
[1719945018811,20.0,152.86,152.71,16.3707]
[1719945018812,19.66,152.83,152.71,16.3707]
[1719945019006,32.7152,152.84,152.68,52.2292]
[1719945019007,16.3648,152.77,152.68,52.2292]
[1719945019206,24.9146,152.75,152.64,0.8635735]
[1719945019519,6.55,152.67,152.64,0.8635735]
[1719945019695,26.4065,152.72,152.64,0.8635735]
[1719945019897,20.0,152.71,152.64,7.4146735]
[1719945020115,16.3724,152.7,152.64,0.8635735]
[1719945020429,6.5506,152.66,152.64,0.8635735]
[1719945020797,6.55,152.67,152.64,0.8635735]
[1719945021102,36.3712,152.71,152.64,0.8635735]
[1719945021317,56.0312,152.71,152.64,0.8635735]
[1719945021619,6.5505,152.66,152.64,0.8635735]
[1719945021814,56.0312,152.71,152.64,0.8635735]
[1719945022020,36.3712,152.71,152.64,0.8635735]
[1719945022518,6.5509,152.66,152.64,0.8635735]
[1719945023094,6.5509,152.65,152.64,0.8635735]
[1719945023300,20.0,152.65,152.64,0.8635735]
[1719945023706,16.3712,152.71,152.64,0.8635735]
[1719945023902,20.0,152.7,152.64,0.8635735]
[1719945024103,6.5504,152.67,152.64,0.8635735]
[1719945024418,20.0,152.66,152.64,0.8635735]
[1719945024604,20.0,152.67,152.64,0.8635735]
[1719945025321,26.5503,152.67,152.64,0.8635735]
[1719945025522,6.5503,152.67,152.64,0.8635735]
[1719945026218,6.5509,152.65,152.64,0.8635735]
[1719945026432,6.5506,152.66,152.64,0.7592335]
[1719945026914,6.5509,152.65,152.64,0.7592335]
[1719945027116,26.5509,152.65,152.64,0.7592335]
[1719945027523,20.0,152.65,152.64,0.7592335]
[1719945028097,26.5509,152.65,152.64,0.7592335]
[1719945029214,6.5535,152.59,152.58,0.03883489]
[1719945029449,6.5535,152.59,152.5,16.3928]
[1719945029450,6.5548,152.56,152.5,16.3928]
[1719945029620,10.7565,152.64,152.56,16.3861]
[1719945029826,6.5522,152.62,152.54,10.374]
[1719945030117,20.0,152.63,152.55,22.9426]
[1719945030315,20.0,152.63,152.56,6.5546]
[1719945030512,6.5523,152.62,152.57,16.3854]
[1719945030721,20.0,152.61,152.57,22.9396]
[1719945030906,6.5531,152.6,152.56,6.5547]
[1719945031096,20.0,152.61,152.54,10.374]
[1719945031298,39.66,152.63,152.51,16.3919]
[1719945031628,43.87,152.63,152.53,16.3896]
[1719945031823,26.959,152.66,152.58,16.3844]
[1719945032120,19.64417353,152.68,152.55,24.8341]
[1719945032121,10.6832,152.68,152.55,24.8341]
[1719945032329,6.5516,152.64,152.59,6.5534]
[1719945032537,10.6832,152.68,152.55,24.8341]
[1719945032821,10.6832,152.68,152.56,32.7738]
[1719945033013,6.5501,152.67,152.62,22.9318]
[1719945033215,10.6832,152.68,152.56,32.7738]
[1719945033216,6.5513,152.65,152.6,6.5527]
[1719945033421,6.5513,152.65,152.61,6.5525]
[1719945033608,6.5505,152.66,152.61,6.5525]
[1719945033811,10.6832,152.68,152.62,6.552]
[1719945034012,26.5501,152.67,152.62,6.552]
[1719945034320,20.0,152.67,152.61,16.3811]
[1719945034521,20.0,152.67,152.64,6.5512]
[1719945034822,20.0,152.67,152.63,16.3785]
[1719945035042,40.2403,152.72,152.6,32.7649]
[1719945035043,36.8169,152.75,152.61,34.3658]
[1719945035208,6.5471,152.74,152.69,6.5491]
[1719945035407,10.6952,152.79,152.67,23.87]
[1719945035736,6.5444,152.81,152.75,6.5465]
[1719945035924,6.5453,152.78,152.73,16.3679]
[1719945036336,6.5453,152.78,152.73,22.9151]
[1719945036535,6.5449,152.79,152.73,22.9151]
[1719945036832,36.0188,152.83,152.73,22.9151]
[1719945036833,6.5444,152.81,152.73,16.3679]
[1719945037038,6.5444,152.81,152.75,6.5465]
[1719945037210,34.5652,152.84,152.75,16.3655]
[1719945037410,10.6952,152.84,152.71,9.981]
[1719945037603,10.6952,152.84,152.78,16.3632]
[1719945037810,17.238,152.84,152.78,16.3632]
[1719945038109,6.5449,152.79,152.75,16.3663]
[1719945039318,6.5449,152.79,152.74,6.5469]
[1719945039636,46.7128,152.84,152.75,6.5465]
[1719945039814,6.5453,152.79,152.73,6.5473]
[1719945040015,6.5461,152.77,152.72,22.9171]
[1719945040528,10.6952,152.84,152.72,16.3693]
[1719945040529,30.3552,152.84,152.72,16.3693]
[1719945040707,39.66,152.83,152.72,16.3693]
[1719945040909,20.0,152.83,152.74,16.3671]
[1719945041113,36.3586,152.83,152.74,16.3671]
[1719945041317,6.5453,152.78,152.74,22.9141]
[1719945041727,6.5453,152.78,152.74,16.3671]
[1719945042038,6.5458,152.77,152.71,16.3705]
[1719945042329,6.5458,152.77,152.72,6.5475]
[1719945042839,36.0208,152.81,152.71,16.3705]
[1719945043042,20.0,152.8,152.71,16.3705]
[1719945043534,20.0,152.8,152.72,6.5477]
[1719945043738,6.5465,152.76,152.71,16.3705]
[1719945044111,6.5466,152.75,152.71,16.3705]
[1719945044728,6.5463,152.76,152.71,22.9188]
[1719945045030,26.5467,152.75,152.7,6.5487]
[1719945045413,26.5467,152.75,152.69,16.3725]
[1719945045414,6.5472,152.74,152.69,22.9216]
[1719945045633,6.5475,152.73,152.69,22.9216]
[1719945046028,6.5471,152.74,152.69,22.9216]
[1719945046232,20.0,152.75,152.72,6.5479]
[1719945046233,20.0,152.73,152.72,6.5479]
[1719945046410,6.545,152.79,152.68,32.7471]
[1719945046613,26.5453,152.78,152.73,16.3682]
[1719945046813,26.5453,152.78,152.73,22.9153]
[1719945047247,6.5458,152.77,152.73,22.9153]
[1719945047427,20.0,152.76,152.73,16.3682]
[1719945047814,20.0,152.76,152.72,6.5478]
[1719945048842,26.5462,152.76,152.72,6.5478]
[1719945049333,26.5462,152.76,152.71,6.5482]
[1719945049540,26.5462,152.76,152.72,6.5478]
[1719945050630,26.5462,152.76,152.71,6.5482]
[1719945051033,20.0,152.76,152.7,16.3713]
[1719945051246,16.3639,152.78,152.64,59.8362]
[1719945051444,20.0,152.77,152.68,16.3732]
[1719945051653,6.547,152.75,152.69,6.5491]
[1719945052024,20.0,152.74,152.7,6.5486]
[1719945052717,20.0,152.74,152.71,7.81807924]
[1719945052921,20.0,152.75,152.71,7.81807924]
[1719945053528,26.5466,152.75,152.71,1.26987924]
[1719945054160,26.5466,152.75,152.71,7.81817924]
[1719945054640,16.3677,152.74,152.65,1.27037837]
[1719945054851,16.3677,152.74,152.65,6.5507]
[1719945054852,6.5491,152.7,152.65,6.5507]
[1719945055153,6.5493,152.69,152.64,6.5512]
[1719945055335,6.5488,152.7,152.65,6.5508]
[1719945055738,6.5488,152.7,152.66,6.5504]
[1719945056462,72.9389,152.75,152.63,16.3788]
[1719945056463,20.0,152.69,152.63,16.3788]
[1719945056838,20.0,152.69,152.63,22.9305]
[1719945057042,20.0,152.69,152.63,16.3788]
[1719945057354,16.3717,152.71,152.63,22.9305]
[1719945057355,6.5497,152.68,152.63,22.9305]
[1719945057557,6.5501,152.67,152.63,22.9305]
[1719945057865,20.0,152.7,152.63,22.9305]
[1719945057866,20.0,152.7,152.63,16.3788]
[1719945058171,49.1055,152.74,152.6,26.1229]
[1719945058172,6.5484,152.71,152.67,6.5497]
[1719945058362,20.0,152.7,152.67,6.5497]
[1719945058545,6.5484,152.71,152.66,6.5504]
[1719945058758,20.0,152.7,152.66,6.5504]
[1719945059757,20.0,152.7,152.68,6.5495]
[1719945059943,20.0,152.71,152.67,16.3749]
[1719945060143,26.5484,152.71,152.67,22.9248]
[1719945060337,20.0,152.71,152.67,22.9248]
[1719945060562,26.5484,152.71,152.67,16.3749]
[1719945060746,26.5484,152.71,152.67,22.9249]
[1719945061064,6.5488,152.7,152.65,6.5505]
[1719945061239,20.0,152.71,152.61,16.3808]
[1719945061447,16.3761,152.67,152.57,10.9687]
[1719945061751,6.5515,152.64,152.59,6.5532]
[1719945062460,16.3761,152.67,152.59,16.3835]
[1719945062770,6.552,152.63,152.59,22.9368]
[1719945063073,6.5522,152.62,152.58,6.5537]
[1719945063850,6.5543,152.57,152.53,26.6027]
[1719945064047,43.69,152.64,152.53,6.5559]
[1719945064361,6.553,152.61,152.52,32.7824]
[1719945064679,20.0,152.6,152.57,6.5543]
[1719945064971,26.5531,152.6,152.56,6.5547]
[1719945065178,20.0,152.6,152.56,6.5547]
[1719945065954,6.5523,152.62,152.57,6.5542]
[1719945066153,26.5527,152.61,152.56,16.3865]
[1719945066770,26.5527,152.61,152.56,22.941]
[1719945067468,26.5527,152.61,152.57,6.5542]
[1719945067771,20.0,152.61,152.57,6.554]
[1719945067952,36.3819,152.61,152.53,16.3898]
[1719945068153,6.5548,152.56,152.52,6.5562]
[1719945068471,6.5543,152.57,152.52,6.5564]
[1719945068661,16.3841,152.59,152.5,6.5569]
[1719945068970,6.5555,152.55,152.51,6.5568]
[1719945069268,6.5549,152.56,152.51,6.5568]
[1719945069460,6.5549,152.56,152.52,6.5564]
[1719945069662,6.5545,152.57,152.52,6.5564]
[1719945069855,20.0,152.56,152.52,6.5564]
[1719945070177,26.5549,152.56,152.51,22.9488]
[1719945070675,6.5562,152.53,152.49,7.4212735]
[1719945070862,20.0,152.56,152.49,0.8635735]
[1719945070863,6.5565,152.52,152.49,0.8635735]
[1719945071063,6.5573,152.5,152.49,0.8635735]
[1719945071267,6.5569,152.52,152.49,0.8635735]
[1719945071854,20.0,152.56,152.49,0.8635735]
[1719945072053,6.556,152.53,152.49,7.4212735]
[1719945072255,6.5566,152.52,152.49,0.8635735]
[1719945072974,36.0473,152.56,152.49,0.8635735]
[1719945073191,36.0473,152.56,152.41,32.8042]
[1719945073192,34.7117,152.49,152.35,9.9755]
[1719945073478,34.7117,152.49,152.37,6.5626]
[1719945073479,6.5608,152.42,152.37,6.5626]
[1719945073668,6.5596,152.45,152.4,6.5613]
[1719945073986,6.5597,152.45,152.4,6.5613]
[1719945074161,6.5592,152.46,152.41,6.5612]
[1719945074510,20.0,152.45,152.37,16.407]
[1719945074656,6.5616,152.41,152.36,6.5631]
[1719945074863,6.5613,152.41,152.36,6.563]
[1719945075062,36.3996,152.45,152.36,16.4079]
[1719945075379,6.5616,152.4,152.36,16.4079]